bitfinex/quotes_SOLUSD_20251030
["timestamp","ask_amount","ask_price","bid_price","bid_amount"]
[1761836929442,5.45765058,186.53,186.48,0.69]
[1761836929777,5.45765058,186.51,186.38,101.99999999]
[1761836929966,31.852,186.51,186.38,50.0]
[1761836930188,5.45765058,186.44,186.39,0.69]
[1761836930464,5.45765058,186.41,186.34,0.69]
[1761836930657,5.45765058,186.42,186.34,6.14765058]
[1761836930968,31.872,186.43,186.34,6.14765058]
[1761836930969,11.3,186.43,186.37,5.45765058]
[1761836931135,5.45765058,186.45,186.38,0.69]
[1761836931136,11.3,186.45,186.38,0.69]
[1761836931461,31.892,186.45,186.4,5.45765058]
[1761836931658,20.592,186.45,186.35,50.0]
[1761836931834,26.04965058,186.45,186.35,11.3]
[1761836932036,5.45765058,186.44,186.37,5.45765058]
[1761836932355,26.04965058,186.45,186.37,5.45765058]
[1761836932562,0.68,186.53,186.41,5.45765058]
[1761836932750,20.592,186.46,186.42,5.45765058]
[1761836933061,5.45765058,186.49,186.43,5.45765058]
[1761836933372,11.3,186.51,186.43,5.45765058]
[1761836933373,5.45765058,186.5,186.43,5.45765058]
[1761836933575,20.592,186.47,186.43,0.69]
[1761836933768,20.592,186.47,186.44,0.69]
[1761836934358,5.45765058,186.49,186.44,0.69]
[1761836935176,20.592,186.51,186.46,5.45765058]
[1761836935485,5.45765058,186.53,186.47,5.45765058]
[1761836935663,5.45765058,186.55,186.49,5.45765058]
[1761836935851,5.45765058,186.56,186.5,5.45765058]
[1761836936277,11.3,186.59,186.5,5.45765058]
[1761836936278,5.45765058,186.55,186.51,0.69]
[1761836936665,5.45765058,186.53,186.48,0.69]
[1761836936859,5.45765058,186.53,186.46,11.99]
[1761836937060,21.272,186.58,186.47,5.45765058]
[1761836937284,5.45765058,186.56,186.5,5.45765058]
[1761836937467,5.45765058,186.56,186.51,0.69]
[1761836938161,5.45765058,186.55,186.51,0.69]
[1761836938670,5.45765058,186.54,186.51,0.69]
[1761836940058,5.45765058,186.53,186.46,9.78882769]
[1761836940279,5.45765058,186.56,186.47,11.97]
[1761836940475,20.592,186.55,186.48,15.24647827]
[1761836940677,14.08012178,186.62,186.51,5.45765058]
[1761836940986,5.45765058,186.58,186.52,6.14765058]
[1761836941188,5.45765058,186.67,186.55,5.45765058]
[1761836941487,5.45765058,186.62,186.57,5.45765058]
[1761836941663,5.45765058,186.62,186.54,11.28]
[1761836941985,5.45765058,186.62,186.56,5.45765058]
[1761836942286,0.68,186.66,186.57,5.45765058]
[1761836942586,5.45765058,186.63,186.58,5.45765058]
[1761836942769,5.45765058,186.6,186.56,0.69]
[1761836942973,5.45765058,186.57,186.53,0.69]
[1761836943286,5.45765058,186.59,186.53,6.14765058]
[1761836943595,5.45765058,186.59,186.54,0.69]
[1761836943898,5.45765058,186.55,186.52,11.3]
[1761836944100,5.45765058,186.55,186.53,0.69]
[1761836944311,5.45765058,186.57,186.53,0.69]
[1761836944480,5.45765058,186.58,186.53,0.69]
[1761836944854,5.45765058,186.59,186.53,6.14765058]
[1761836945099,5.45765058,186.6,186.55,5.45765058]
[1761836945713,5.45765058,186.59,186.56,0.69]
[1761836946386,5.45765058,186.62,186.56,6.14765058]
[1761836946577,5.45765058,186.64,186.58,5.45765058]
[1761836946911,5.45765058,186.64,186.59,6.14765058]
[1761836947112,11.96,186.72,186.62,5.45765058]
[1761836947399,5.45765058,186.74,186.68,5.45765058]
[1761836947599,5.45765058,186.76,186.7,5.45765058]
[1761836947800,5.35188654,186.85,186.67,11.3]
[1761836947801,11.3,186.82,186.72,5.45765058]
[1761836947973,5.45765058,186.75,186.71,0.69]
[1761836948179,5.45765058,186.78,186.68,11.3]
[1761836948485,5.45765058,186.78,186.67,0.69]
[1761836948788,5.45765058,186.71,186.67,0.69]
[1761836948995,5.45765058,186.72,186.67,0.69]
[1761836949618,5.45765058,186.76,186.7,5.45765058]
[1761836949778,5.45765058,186.75,186.69,5.45765058]
[1761836949977,5.45765058,186.71,186.67,0.69]
[1761836950285,5.45765058,186.68,186.64,11.3]
[1761836950610,32.602,186.77,186.64,11.99]
[1761836950822,5.45765058,186.68,186.64,11.99]
[1761836950979,5.45765058,186.69,186.65,0.69]
[1761836951520,0.71,186.73,186.65,0.69]
[1761836951681,5.45765058,186.68,186.65,0.69]
[1761836952386,5.45765058,186.69,186.65,0.69]
[1761836952811,5.45765058,186.67,186.65,62.29]
[1761836953015,5.45765058,186.68,186.65,61.6]
[1761836953321,5.45765058,186.68,186.66,0.69]
[1761836954214,5.45765058,186.68,186.65,61.6]
[1761836954397,5.45765058,186.66,186.62,61.6]
[1761836954595,5.45765058,186.63,186.59,0.69]
[1761836954815,6.16765058,186.67,186.58,11.28]
[1761836954816,5.45765058,186.6,186.58,11.28]
[1761836955031,5.45765058,186.6,186.54,9.78882769]
[1761836955328,5.45765058,186.62,186.55,16.73765058]
[1761836955691,5.45765058,186.62,186.55,17.39765058]
[1761836956294,5.45765058,186.61,186.55,17.39765058]
[1761836956493,5.45765058,186.59,186.56,11.28]
[1761836956707,5.45765058,186.58,186.56,11.28]
[1761836956894,5.45765058,186.57,186.54,11.28]
[1761836957113,5.45765058,186.58,186.54,11.28]
[1761836957418,5.45765058,186.58,186.51,15.90647827]
[1761836957419,5.45765058,186.56,186.53,11.28]
[1761836957795,0.68,186.56,186.49,0.66]
[1761836957995,5.45765058,186.56,186.52,11.28]
[1761836958414,20.592,186.57,186.52,11.28]
[1761836958719,5.45765058,186.54,186.49,11.28]
[1761836958892,5.45765058,186.55,186.49,11.28]
[1761836959095,0.68,186.57,186.5,11.28]
[1761836959295,8.33364804,186.55,186.5,11.28]
[1761836959523,28.92564804,186.56,186.5,11.28]
[1761836959710,28.92564804,186.56,186.5,11.94]
[1761836959918,8.33364804,186.55,186.5,11.94]
[1761836960424,8.33364804,186.56,186.5,11.94]
[1761836960621,8.33364804,186.55,186.5,11.94]
[1761836961123,8.33364804,186.52,186.46,8.33364804]
[1761836961330,8.33364804,186.53,186.47,11.3]
[1761836961499,8.33364804,186.53,186.47,11.96]
[1761836961704,8.33364804,186.54,186.48,0.66]
[1761836962023,8.33364804,186.53,186.48,11.96]
[1761836962594,8.33364804,186.54,186.49,0.66]
[1761836962921,28.92564804,186.58,186.51,8.33364804]
[1761836963123,8.33364804,186.57,186.51,0.66]
[1761836963303,0.68,186.57,186.48,19.63364804]
[1761836963500,8.33364804,186.54,186.49,0.66]
[1761836963705,8.33364804,186.55,186.49,8.99364804]
[1761836964302,8.33364804,186.55,186.5,0.66]
[1761836964508,8.33364804,186.56,186.5,0.66]
[1761836965525,8.33364804,186.55,186.5,11.96]
[1761836965908,8.33364804,186.55,186.51,0.66]
[1761836966603,28.92564804,186.52,186.45,69.93364804]
[1761836966803,8.33364804,186.52,186.46,11.94]
[1761836967619,8.33364804,186.52,186.47,0.66]
[1761836968015,21.272,186.54,186.47,0.66]
[1761836968216,8.33364804,186.52,186.47,0.66]
[1761836968540,8.33364804,186.52,186.47,11.94]
[1761836968904,21.272,186.54,186.43,0.66]
[1761836968905,8.33364804,186.49,186.43,0.66]
[1761836969107,8.33364804,186.47,186.43,0.66]
[1761836969303,8.33364804,186.47,186.43,11.94]
[1761836969601,8.33364804,186.48,186.43,11.94]
[1761836970032,8.33364804,186.49,186.44,0.66]
[1761836970813,8.33364804,186.52,186.45,8.33364804]
[1761836971013,8.33364804,186.53,186.47,8.33364804]
[1761836971218,8.33364804,186.53,186.47,11.26]
[1761836971419,8.33364804,186.53,186.47,11.92]
[1761836971820,8.33364804,186.53,186.47,20.25364804]
[1761836972206,8.33364804,186.5,186.42,59.78882769]
[1761836972413,20.592,186.43,186.39,0.66]
[1761836972908,8.33364804,186.45,186.39,0.66]
[1761836973107,8.33364804,186.45,186.38,11.28]
[1761836973328,8.33364804,186.43,186.37,11.94]
[1761836973539,20.592,186.47,186.38,0.66]
[1761836973710,8.33364804,186.45,186.38,0.66]
[1761836973909,8.33364804,186.45,186.38,8.99364804]
[1761836974311,20.592,186.47,186.38,8.99364804]
[1761836974525,28.92564804,186.47,186.38,8.99364804]
[1761836974836,28.92564804,186.47,186.39,0.66]
[1761836976026,20.592,186.47,186.39,0.66]
[1761836976227,8.33364804,186.49,186.42,8.33364804]
[1761836976730,8.33364804,186.49,186.42,8.99364804]
[1761836977826,8.33364804,186.49,186.43,0.66]
[1761836978149,20.592,186.46,186.43,0.66]
[1761836978442,20.592,186.49,186.43,0.66]
[1761836978746,8.33364804,186.54,186.46,8.33364804]
[1761836978936,20.592,186.51,186.46,8.33364804]
[1761836979140,20.592,186.51,186.46,9.05364804]
[1761836979316,20.592,186.51,186.47,0.72]
[1761836979518,20.592,186.5,186.44,9.05364804]
[1761836979715,20.592,186.49,186.44,9.05364804]
[1761836980022,8.33364804,186.47,186.39,0.72]
[1761836980222,8.33364804,186.45,186.39,11.98]
[1761836980743,20.592,186.42,186.39,0.72]
[1761836981750,11.94,186.47,186.39,0.72]
[1761836982045,20.592,186.44,186.39,0.72]
[1761836983347,20.592,186.44,186.4,8.33364804]
[1761836983751,20.592,186.44,186.41,0.72]
[1761836984048,20.592,186.45,186.41,0.72]
[1761836984248,28.92564804,186.46,186.38,8.33364804]
[1761836984439,8.33364804,186.45,186.38,0.72]
[1761836985330,20.592,186.43,186.38,0.72]
[1761836986855,20.592,186.42,186.38,0.72]
[1761836987349,20.592,186.45,186.39,8.33364804]
[1761836987539,20.592,186.43,186.39,8.33364804]
[1761836987739,20.592,186.43,186.39,9.05364804]
[1761836988051,20.592,186.43,186.39,0.72]
[1761836988665,20.592,186.43,186.39,62.32]
[1761836988958,28.92564804,186.45,186.39,62.32]
[1761836989938,8.33364804,186.43,186.37,72.88]
[1761836990146,8.33364804,186.41,186.36,0.72]
[1761836990354,28.92564804,186.42,186.36,0.72]
[1761836990871,20.592,186.42,186.36,0.72]
[1761836991050,20.592,186.41,186.36,9.05364804]
[1761836991230,20.592,186.41,186.36,0.72]
[1761836991430,0.66,186.49,186.39,8.33364804]
[1761836991651,8.33364804,186.47,186.39,19.59364804]
[1761836991862,20.592,186.44,186.39,20.31364804]
[1761836992073,20.592,186.44,186.4,9.05364804]
[1761836992236,20.592,186.44,186.4,0.72]
[1761836992429,20.592,186.44,186.41,0.72]
[1761836993154,0.66,186.48,186.41,0.72]
[1761836993155,20.592,186.45,186.41,0.72]
[1761836993348,20.592,186.44,186.41,0.72]
[1761836993751,20.592,186.45,186.39,11.26]
[1761836993955,8.99364804,186.44,186.37,0.72]
[1761836994148,20.592,186.43,186.37,0.72]
[1761836994458,28.92564804,186.43,186.37,0.72]
[1761836994662,20.592,186.43,186.37,0.72]
[1761836995047,20.592,186.43,186.37,9.05364804]
[1761836995365,20.592,186.44,186.4,8.33364804]
[1761836995669,20.592,186.44,186.4,19.57364804]
[1761836995839,0.66,186.5,186.43,8.33364804]
[1761836996166,7.94,186.51,186.44,8.33364804]
[1761836996338,0.66,186.53,186.46,8.33364804]
[1761836996529,8.33364804,186.53,186.46,8.33364804]
[1761836996737,20.592,186.5,186.46,9.05364804]
[1761836996937,20.592,186.5,186.46,0.72]
[1761836997151,11.92,186.54,186.47,0.72]
[1761836997357,8.33364804,186.51,186.44,11.96]
[1761836997641,8.33364804,186.51,186.4,9.78882769]
[1761836997642,8.33364804,186.48,186.41,0.72]
[1761836998052,8.33364804,186.46,186.41,0.72]
[1761836998448,8.33364804,186.46,186.4,11.24]
[1761836998654,8.33364804,186.46,186.4,11.96]
[1761836998848,0.66,186.48,186.4,11.96]
[1761836999168,11.24,186.5,186.41,0.72]
[1761836999169,20.592,186.46,186.41,0.72]
[1761836999749,13.40437544,186.51,186.41,0.72]
[1761836999750,28.92564804,186.48,186.41,0.72]
[1761836999964,8.33364804,186.51,186.44,8.33364804]
[1761837000269,20.592,186.49,186.44,19.57364804]
[1761837000639,28.92564804,186.49,186.44,11.96]
[1761837000860,8.99364804,186.48,186.44,11.24]
[1761837001065,8.33364804,186.5,186.45,0.72]
[1761837001368,20.592,186.51,186.46,8.33364804]
[1761837001538,16.19939786,186.59,186.5,8.33364804]
[1761837001539,8.33364804,186.58,186.5,8.33364804]
[1761837001867,20.592,186.56,186.51,8.33364804]
[1761837002163,11.92,186.59,186.5,8.33364804]
[1761837002390,8.33364804,186.58,186.5,9.05364804]
[1761837002591,8.33364804,186.61,186.51,0.72]
[1761837002743,20.592,186.58,186.53,8.33364804]
[1761837003095,0.86,186.69,186.57,8.33364804]
[1761837003238,8.33364804,186.64,186.56,8.33364804]
[1761837003543,20.592,186.61,186.55,0.72]
[1761837003744,28.92564804,186.61,186.55,11.98]
[1761837003944,11.26,186.65,186.55,20.31364804]
[1761837003945,28.92564804,186.62,186.55,20.31364804]
[1761837004144,8.33364804,186.66,186.59,8.33364804]
[1761837004543,20.592,186.63,186.6,0.72]
[1761837004944,19.59364804,186.67,186.6,9.05364804]
[1761837005367,0.2,186.69,186.64,8.33364804]
[1761837005665,0.2,186.69,186.65,8.33364804]
[1761837005866,0.2,186.69,186.65,0.72]
[1761837006180,8.53364804,186.69,186.62,9.05364804]
[1761837006341,8.33364804,186.68,186.63,11.26]
[1761837006546,8.33364804,186.68,186.62,0.72]
[1761837006845,0.2,186.69,186.63,8.33364804]
[1761837007046,0.2,186.69,186.64,8.33364804]
[1761837007244,0.2,186.69,186.63,11.98]
[1761837007477,0.2,186.69,186.64,0.72]
[1761837007660,0.2,186.69,186.67,8.33364804]
[1761837007972,0.2,186.69,186.68,19.59364804]
[1761837008162,0.2,186.69,186.68,11.98]
[1761837008353,0.2,186.69,186.68,11.26]
[1761837008762,0.2,186.69,186.68,11.98]
[1761837009552,0.2,186.69,186.68,11.26]
[1761837011181,0.2,186.69,186.63,9.04364804]
[1761837011475,0.2,186.69,186.64,11.26]
[1761837011476,8.33364804,186.68,186.64,11.26]
[1761837012053,9.04364804,186.68,186.61,0.71]
[1761837012369,8.33364804,186.66,186.61,11.97]
[1761837012576,0.71,186.68,186.61,11.97]
[1761837012758,8.33364804,186.65,186.61,11.26]
[1761837013295,8.33364804,186.64,186.57,70.64364804]
[1761837013459,8.33364804,186.63,186.58,11.26]
[1761837013654,9.04364804,186.64,186.58,72.86]
[1761837013871,8.33364804,186.64,186.58,72.86]
[1761837014099,28.92564804,186.67,186.6,8.33364804]
[1761837014263,8.53364804,186.69,186.62,8.33364804]
[1761837014463,20.592,186.66,186.62,11.24]
[1761837014778,28.92564804,186.66,186.62,11.24]
[1761837015086,29.60564804,186.66,186.62,11.24]
[1761837015266,29.60564804,186.66,186.58,8.99364804]
[1761837015267,28.92564804,186.66,186.6,0.66]
[1761837015467,28.92564804,186.66,186.6,11.9]
[1761837016508,0.2,186.69,186.64,8.33364804]
[1761837016676,0.2,186.69,186.65,8.99364804]
[1761837017087,28.92564804,186.67,186.62,0.66]
[1761837017381,20.592,186.67,186.62,0.66]
[1761837017963,8.33364804,186.67,186.62,0.66]
[1761837018296,29.12564804,186.69,186.62,8.99364804]
[1761837018597,20.792,186.69,186.65,8.33364804]
[1761837019105,20.792,186.69,186.66,0.66]
[1761837019589,0.2,186.69,186.66,6.13454104]
[1761837019890,0.2,186.69,186.67,16.71454104]
[1761837020069,0.2,186.69,186.67,17.37454104]
[1761837020275,0.2,186.69,186.68,0.66]
[1761837020663,0.2,186.69,186.68,6.13454104]
[1761837021784,0.2,186.69,186.68,115.92336873]
[1761837021966,0.2,186.74,186.72,61.4]
[1761837022171,0.2,186.74,186.73,16.71454104]
[1761837022386,0.2,186.74,186.73,78.77454104]
[1761837023893,0.2,186.74,186.73,67.53454104]
[1761837024062,0.2,186.74,186.73,78.77454104]
[1761837024784,0.2,186.74,186.73,77.16336873]
[1761837025584,0.2,186.74,186.73,10.44882769]
[1761837025789,0.2,186.74,186.73,27.14336873]
[1761837029093,0.2,186.74,186.73,15.92336873]
[1761837029266,0.2,186.74,186.73,27.14336873]
[1761837029874,5.47454104,186.83,186.75,61.2]
[1761837030103,5.47454104,186.83,186.76,16.69454104]
[1761837030286,21.272,186.84,186.76,78.55454104]
[1761837030287,20.592,186.84,186.76,78.55454104]
[1761837030476,20.592,186.84,186.79,5.47454104]
[1761837030678,5.47454104,186.86,186.8,11.22]
[1761837030881,26.06654104,186.86,186.8,16.69454104]
[1761837031293,26.06654104,186.86,186.8,11.22]
[1761837031497,5.47454104,186.85,186.8,11.22]
[1761837031697,5.47454104,186.81,186.79,11.2]
[1761837031882,5.47454104,186.82,186.79,11.2]
[1761837032375,6.15454104,186.82,186.77,61.2]
[1761837032572,6.15454104,186.82,186.78,11.2]
[1761837032978,5.47454104,186.85,186.79,0.66]
[1761837033391,26.06654104,186.86,186.79,6.13454104]
[1761837033587,5.47454104,186.84,186.79,0.66]
[1761837033971,5.47454104,186.85,186.79,6.13454104]
[1761837035100,5.47454104,186.85,186.78,11.2]
[1761837035101,0.2,186.88,186.8,5.47454104]
[1761837035407,5.47454104,186.86,186.8,11.86]
[1761837035581,5.47454104,186.85,186.8,11.86]
[1761837036095,5.47454104,186.86,186.8,11.86]
[1761837036392,0.68,186.87,186.8,11.86]
[1761837036602,5.47454104,186.86,186.8,11.86]
[1761837036899,5.47454104,186.86,186.8,17.33454104]
[1761837038891,6.15454104,186.86,186.8,11.2]
[1761837039402,5.47454104,186.83,186.79,11.18]
[1761837039588,20.592,186.84,186.8,9.78882769]
[1761837039778,20.592,186.84,186.8,15.94336873]
[1761837039978,20.592,186.84,186.8,10.46882769]
[1761837040499,20.592,186.83,186.8,10.46882769]
[1761837040688,20.592,186.83,186.81,11.18]
[1761837041602,20.592,186.85,186.82,0.68]
[1761837041810,6.35454104,186.88,186.82,0.68]
[1761837041987,5.67454104,186.88,186.82,6.15454104]
[1761837042301,26.26654104,186.88,186.82,6.15454104]
[1761837042503,26.94654104,186.88,186.82,0.68]
[1761837043201,5.47454104,186.87,186.82,0.68]
[1761837043705,6.15454104,186.87,186.82,0.68]
[1761837044177,6.15454104,186.87,186.81,16.65454104]
[1761837044178,5.47454104,186.87,186.81,16.65454104]
[1761837044874,5.47454104,186.87,186.81,17.33454104]
[1761837045380,0.2,186.88,186.83,5.47454104]
[1761837045583,0.2,186.88,186.87,5.47454104]
[1761837045889,0.2,186.88,186.87,26.44336873]
[1761837046096,0.2,186.88,186.87,27.12336873]
[1761837046782,0.2,186.88,186.87,15.94336873]
[1761837046981,0.2,186.88,186.87,27.12336873]
[1761837047577,0.2,186.88,186.87,15.26336873]
[1761837047898,0.2,186.88,186.82,100.0]
[1761837047899,0.2,186.88,186.86,11.18]
[1761837048277,20.792,186.88,186.86,11.18]
[1761837048484,0.2,186.88,186.86,11.18]
[1761837050186,0.2,186.88,186.86,11.86]
[1761837050395,0.2,186.88,186.86,11.18]
[1761837051705,5.67454104,186.88,186.86,11.18]
[1761837052813,5.67454104,186.88,186.85,11.18]
[1761837053589,0.2,186.88,186.86,0.68]
[1761837054210,0.2,186.88,186.85,11.18]
[1761837054509,0.2,186.88,186.85,11.86]
[1761837054712,0.2,186.88,186.85,11.18]
[1761837056514,0.2,186.88,186.86,0.68]
[1761837057319,0.2,186.88,186.85,11.18]
[1761837057520,0.2,186.88,186.85,11.86]
[1761837058801,0.2,186.88,186.85,11.18]
[1761837059005,0.2,186.88,186.83,2.1455453]
[1761837059206,2.3455453,186.88,186.84,11.18]
[1761837059819,2.1455453,186.86,186.81,61.2]
[1761837060020,22.7375453,186.85,186.82,11.18]
[1761837060220,2.1455453,186.83,186.78,64.0255453]
[1761837060525,2.1455453,186.79,186.74,64.0255453]
[1761837060817,20.592,186.81,186.76,11.18]
[1761837061020,0.68,186.8,186.76,11.18]
[1761837061195,2.8255453,186.81,186.76,11.18]
[1761837061401,2.1455453,186.8,186.76,11.18]
[1761837061800,2.1455453,186.79,186.76,11.18]
[1761837062022,2.1455453,186.78,186.76,11.18]
[1761837062432,2.1455453,186.77,186.76,11.18]
[1761837062905,0.68,186.78,186.76,11.18]
[1761837063226,22.7375453,186.77,186.7,34.2655453]
[1761837063408,5.47177095,186.75,186.73,11.18]
[1761837063609,5.47177095,186.74,186.7,0.68]
[1761837063941,5.47177095,186.73,186.71,11.18]
[1761837064300,5.47177095,186.74,186.71,11.18]
[1761837064514,5.47177095,186.75,186.71,11.18]
[1761837064710,5.47177095,186.74,186.71,11.18]
[1761837064922,6.15177095,186.74,186.71,11.18]
[1761837065128,5.47177095,186.74,186.71,11.18]
[1761837065506,5.47177095,186.73,186.71,11.18]
[1761837065732,6.15177095,186.72,186.64,50.0]
[1761837065922,5.47177095,186.69,186.65,9.78882769]
[1761837066121,5.47177095,186.7,186.66,11.18]
[1761837066332,5.47177095,186.68,186.66,11.18]
[1761837066832,5.35562727,186.72,186.61,50.0]
[1761837066833,6.15177095,186.67,186.61,5.47177095]
[1761837067031,0.68,186.67,186.62,11.18]
[1761837067239,5.47177095,186.67,186.63,0.68]
[1761837067449,5.47177095,186.68,186.63,6.15177095]
[1761837068028,5.47177095,186.75,186.67,5.47177095]
[1761837068227,5.47177095,186.75,186.7,5.47177095]
[1761837068432,20.592,186.72,186.71,11.18]
[1761837070738,20.592,186.73,186.71,11.18]
[1761837070920,20.592,186.72,186.71,11.18]
[1761837072112,5.47177095,186.73,186.71,11.18]
[1761837072411,5.47177095,186.73,186.71,72.38]
[1761837072611,6.15177095,186.73,186.71,72.38]
[1761837072830,5.47177095,186.72,186.71,61.2]
[1761837073033,26.74377095,186.72,186.71,61.2]
[1761837073707,20.592,186.72,186.71,61.2]
[1761837074728,20.592,186.72,186.71,0.69]
[1761837074910,20.592,186.72,186.7,16.65177095]
[1761837075117,20.592,186.72,186.7,11.18]
[1761837075533,26.73377095,186.72,186.7,11.18]
[1761837075835,26.73377095,186.72,186.68,11.18]
[1761837076015,20.592,186.72,186.68,11.87]
[1761837076213,26.06377095,186.72,186.68,11.18]
[1761837076415,26.73377095,186.72,186.68,11.18]
[1761837076637,26.06377095,186.72,186.68,11.18]
[1761837076840,20.592,186.7,186.69,0.69]
[1761837077037,20.592,186.74,186.69,0.69]
[1761837077220,20.592,186.7,186.69,0.69]
[1761837077423,20.592,186.73,186.7,9.78882769]
[1761837077751,20.592,186.73,186.71,16.65177095]
[1761837077931,20.592,186.74,186.71,17.34177095]
[1761837078315,20.592,186.74,186.72,6.16177095]
[1761837078529,16.08535964,186.81,186.73,15.26059864]
[1761837078724,5.47177095,186.82,186.76,15.26059864]
[1761837078924,0.67,186.83,186.76,15.26059864]
[1761837078925,6.14177095,186.83,186.77,16.65177095]
[1761837079138,11.18,186.85,186.77,16.65177095]
[1761837079335,16.65177095,186.85,186.79,5.47177095]
[1761837079536,6.14177095,186.86,186.8,11.18]
[1761837079719,20.592,186.83,186.8,17.34177095]
[1761837080634,0.2,186.88,186.82,15.26059864]
[1761837080938,0.2,186.88,186.85,5.47177095]
[1761837081150,0.2,186.88,186.86,11.87]
[1761837081317,20.592,186.87,186.86,11.18]
[1761837081836,0.2,186.88,186.86,11.18]
[1761837082548,20.792,186.88,186.86,11.87]
[1761837082844,20.792,186.88,186.87,0.69]
[1761837083028,0.2,186.88,186.86,11.18]
[1761837083229,20.792,186.88,186.86,11.87]
[1761837083539,20.792,186.88,186.87,0.69]
[1761837083757,20.792,186.88,186.86,11.18]
[1761837083758,0.2,186.88,186.86,11.18]
[1761837084044,0.2,186.88,186.86,11.87]
[1761837084226,0.2,186.88,186.82,9.78882769]
[1761837084227,20.792,186.88,186.82,9.78882769]
[1761837084542,29.0938031,186.88,186.83,11.18]
[1761837084741,20.792,186.88,186.83,11.18]
[1761837084940,20.792,186.88,186.83,11.87]
[1761837085643,20.94087701,186.88,186.83,11.87]
[1761837086148,20.94087701,186.88,186.84,0.69]
[1761837086326,20.94087701,186.88,186.85,8.3018031]
[1761837086524,0.34887701,186.88,186.84,0.69]
[1761837086721,0.34887701,186.88,186.86,11.18]
[1761837087429,9.32068011,186.88,186.86,11.18]
[1761837087645,8.65068011,186.88,186.86,11.18]
[1761837087839,20.94087701,186.88,186.86,11.18]
[1761837089247,29.91268011,186.88,186.86,11.18]
[1761837089450,29.24268011,186.88,186.86,11.18]
[1761837089661,29.24268011,186.88,186.82,10.47882769]
[1761837089848,29.24268011,186.88,186.83,11.18]
[1761837090048,8.3018031,186.87,186.83,11.18]
[1761837090469,20.592,186.86,186.83,19.4818031]
[1761837090767,20.592,186.86,186.83,11.18]
[1761837090968,8.9718031,186.85,186.82,11.18]
[1761837092041,8.9718031,186.85,186.8,9.78882769]
[1761837092270,8.9718031,186.85,186.81,11.18]
[1761837092455,8.3018031,186.85,186.81,11.18]
[1761837093571,8.3018031,186.84,186.81,11.18]
[1761837093947,8.3018031,186.83,186.81,11.18]
[1761837094147,20.592,186.84,186.81,11.18]
[1761837094372,28.8938031,186.84,186.81,11.18]
[1761837094666,20.592,186.84,186.81,11.18]
[1761837094845,0.67,186.84,186.81,11.18]
[1761837095168,8.3018031,186.84,186.81,11.18]
[1761837095877,28.8938031,186.82,186.81,61.2]
[1761837096162,37.1956062,186.82,186.7,11.18]
[1761837096363,8.3018031,186.75,186.71,9.78882769]
[1761837096757,8.3018031,186.75,186.71,10.47882769]
[1761837097141,8.3018031,186.74,186.71,9.78882769]
[1761837097342,8.3018031,186.72,186.68,0.69]
[1761837097568,8.3018031,186.7,186.69,11.18]
[1761837098350,28.8938031,186.71,186.69,11.18]
[1761837098753,20.592,186.71,186.69,11.18]
[1761837098967,28.8938031,186.71,186.69,11.18]
[1761837099861,8.3018031,186.7,186.69,11.18]
[1761837100182,8.3018031,186.7,186.64,0.67]
[1761837100348,8.3018031,186.69,186.65,11.18]
[1761837100554,8.3018031,186.68,186.65,11.18]
[1761837100950,20.592,186.71,186.66,0.67]
[1761837101267,8.3018031,186.69,186.65,11.18]
[1761837101650,8.3018031,186.7,186.66,0.67]